[Event "*** Titled Tuesday Blitz"]
[Site "Chess.com"]
[Date "2020.02.04"]
[Round "3"]
[White "dmosesov"]
[Black "obliviate12"]
[Result "1/2-1/2"]
[WhiteElo "2590"]
[BlackElo "2841"]
[TimeControl "180+2"]
[EndTime "13:40:44 PST"]
[Termination "Game drawn - insufficient material"]

1. d4 {[%clk 0:02:59.8]} 1... Nf6 {[%clk 0:02:59.3]} 2. c4 {[%clk 0:03:00.9]}
2... e6 {[%clk 0:03:00.6]} 3. Nc3 {[%clk 0:03:01.2]} 3... Bb4 {[%clk 0:03:01.7]}
4. e3 {[%clk 0:03:02.6]} 4... O-O {[%clk 0:03:01.8]} 5. Bd2 {[%clk 0:03:03.6]}
5... b6 {[%clk 0:02:59.3]} 6. a3 {[%clk 0:02:59.1]} 6... Bxc3 {[%clk 0:02:54.7]}
7. Bxc3 {[%clk 0:03:00.9]} 7... Ne4 {[%clk 0:02:55.7]} 8. Rc1 {[%clk 0:03:00.5]}
8... Bb7 {[%clk 0:02:54.4]} 9. Ne2 {[%clk 0:02:57.5]} 9... d6 {[%clk 0:02:50.9]}
10. d5 {[%clk 0:02:57.7]} 10... Nd7 {[%clk 0:02:48.2]} 11. Qd4 {[%clk
0:02:28.7]} 11... Ndf6 {[%clk 0:02:07.8]} 12. f3 {[%clk 0:02:25.6]} 12... Nc5
{[%clk 0:02:01.4]} 13. Rd1 {[%clk 0:02:06.9]} 13... exd5 {[%clk 0:02:00.5]} 14.
cxd5 {[%clk 0:02:08.7]} 14... Bxd5 {[%clk 0:01:59.4]} 15. Nf4 {[%clk 0:02:09.9]}
15... Bb3 {[%clk 0:01:59]} 16. Rc1 {[%clk 0:01:59.5]} 16... a5 {[%clk
0:01:52.3]} 17. Be2 {[%clk 0:01:58.7]} 17... Ne6 {[%clk 0:01:44.2]} 18. Nxe6
{[%clk 0:01:55.6]} 18... fxe6 {[%clk 0:01:45.7]} 19. O-O {[%clk 0:01:56.4]}
19... Qe7 {[%clk 0:01:46]} 20. Qh4 {[%clk 0:01:56.1]} 20... e5 {[%clk
0:01:38.1]} 21. Kh1 {[%clk 0:01:48.1]} 21... a4 {[%clk 0:01:33]} 22. e4 {[%clk
0:01:49.2]} 22... Kh8 {[%clk 0:01:31.7]} 23. Bd2 {[%clk 0:01:44.3]} 23... Qe6
{[%clk 0:01:31.1]} 24. Bg5 {[%clk 0:01:43.5]} 24... Rf7 {[%clk 0:01:27.2]} 25.
Rc3 {[%clk 0:01:41.1]} 25... c5 {[%clk 0:01:27.5]} 26. Bb5 {[%clk 0:01:27.8]}
26... d5 {[%clk 0:01:23.9]} 27. exd5 {[%clk 0:01:26]} 27... Nxd5 {[%clk
0:01:24.4]} 28. Rcc1 {[%clk 0:01:21.9]} 28... h6 {[%clk 0:01:19.5]} 29. Rfe1
{[%clk 0:01:14.5]} 29... Nf4 {[%clk 0:01:14.5]} 30. Bxf4 {[%clk 0:00:34]} 30...
Rxf4 {[%clk 0:01:16.4]} 31. Qxf4 {[%clk 0:00:35.6]} 31... exf4 {[%clk
0:01:18.3]} 32. Rxe6 {[%clk 0:00:37.5]} 32... Bxe6 {[%clk 0:01:19.6]} 33. Re1
{[%clk 0:00:39.4]} 33... Bb3 {[%clk 0:01:15.2]} 34. Re4 {[%clk 0:00:37.9]} 34...
Rd8 {[%clk 0:01:04.7]} 35. h4 {[%clk 0:00:38.5]} 35... Rd4 {[%clk 0:00:43.6]}
36. Re8+ {[%clk 0:00:35.8]} 36... Kh7 {[%clk 0:00:44]} 37. Rb8 {[%clk
0:00:34.8]} 37... Rd6 {[%clk 0:00:37.2]} 38. h5 {[%clk 0:00:28.7]} 38... Rd5
{[%clk 0:00:32.8]} 39. Rxb6 {[%clk 0:00:29.3]} 39... Rxh5+ {[%clk 0:00:33.5]}
40. Kg1 {[%clk 0:00:30.9]} 40... Rd5 {[%clk 0:00:34.8]} 41. Ra6 {[%clk
0:00:26.2]} 41... Rd2 {[%clk 0:00:27.4]} 42. Bxa4 {[%clk 0:00:26.1]} 42... c4
{[%clk 0:00:26.3]} 43. Be8 {[%clk 0:00:05.9]} 43... Bc2 {[%clk 0:00:20.1]} 44.
Rc6 {[%clk 0:00:05.3]} 44... Bd3 {[%clk 0:00:19.4]} 45. Bf7 {[%clk 0:00:05.9]}
45... Rc2 {[%clk 0:00:16]} 46. a4 {[%clk 0:00:07.2]} 46... g5 {[%clk 0:00:16.4]}
47. a5 {[%clk 0:00:07.9]} 47... Rxb2 {[%clk 0:00:17.1]} 48. Bxc4 {[%clk
0:00:08.6]} 48... Bxc4 {[%clk 0:00:18.5]} 49. Rxc4 {[%clk 0:00:10.5]} 49... Ra2
{[%clk 0:00:20.4]} 50. Rc7+ {[%clk 0:00:11.5]} 50... Kg6 {[%clk 0:00:21]} 51.
Rc6+ {[%clk 0:00:12.4]} 51... Kh5 {[%clk 0:00:21.9]} 52. Ra6 {[%clk 0:00:11.9]}
52... g4 {[%clk 0:00:17.3]} 53. fxg4+ {[%clk 0:00:13]} 53... Kxg4 {[%clk
0:00:19.2]} 54. Rxh6 {[%clk 0:00:13.5]} 54... Rxa5 {[%clk 0:00:20.2]} 55. Rg6+
{[%clk 0:00:14.4]} 55... Rg5 {[%clk 0:00:19.3]} 56. Rxg5+ {[%clk 0:00:15.5]}
56... Kxg5 {[%clk 0:00:21.2]} 57. Kf2 {[%clk 0:00:17]} 57... Kf5 {[%clk
0:00:22.5]} 58. Kf3 {[%clk 0:00:18.2]} 58... Kg5 {[%clk 0:00:24]} 59. g3 {[%clk
0:00:19.7]} 59... fxg3 {[%clk 0:00:25.9]} 60. Kxg3 {[%clk 0:00:21.6]} 1/2-1/2

[Event "*** Titled Tuesday Blitz"]
[Site "Chess.com"]
[Date "2020.02.04"]
[Round "3"]
[White "Anton_Demchenko"]
[Black "amiralfio"]
[Result "0-1"]
[WhiteElo "2954"]
[BlackElo "2527"]
[TimeControl "180+2"]
[EndTime "13:40:44 PST"]
[Termination "amiralfio won by resignation"]

1. e4 {[%clk 0:03:01.9]} 1... c5 {[%clk 0:02:54.5]} 2. Nf3 {[%clk 0:03:02.7]}
2... d6 {[%clk 0:02:55.7]} 3. d4 {[%clk 0:03:03.4]} 3... Nf6 {[%clk 0:02:57.1]}
4. dxc5 {[%clk 0:03:03.3]} 4... Nxe4 {[%clk 0:02:57.6]} 5. cxd6 {[%clk
0:03:04.6]} 5... Nc6 {[%clk 0:02:58.4]} 6. Bd3 {[%clk 0:03:02.4]} 6... Nxd6
{[%clk 0:02:58.9]} 7. Nc3 {[%clk 0:03:03.8]} 7... g6 {[%clk 0:02:59.1]} 8. O-O
{[%clk 0:02:52.6]} 8... Bg7 {[%clk 0:02:58.3]} 9. Re1 {[%clk 0:02:52.4]} 9...
O-O {[%clk 0:02:58.5]} 10. Bf4 {[%clk 0:02:53.1]} 10... Nf5 {[%clk 0:02:33.7]}
11. a3 {[%clk 0:02:34.8]} 11... Nfd4 {[%clk 0:01:57.1]} 12. Nxd4 {[%clk
0:02:35.1]} 12... Nxd4 {[%clk 0:01:59]} 13. Qd2 {[%clk 0:02:27.1]} 13... Bf5
{[%clk 0:01:44.2]} 14. Rad1 {[%clk 0:02:27.4]} 14... Bxd3 {[%clk 0:01:36.1]} 15.
Qxd3 {[%clk 0:02:28.4]} 15... Ne6 {[%clk 0:01:37]} 16. Be5 {[%clk 0:02:22.3]}
16... Qxd3 {[%clk 0:01:25]} 17. Rxd3 {[%clk 0:02:24.2]} 17... Rfd8 {[%clk
0:01:25.8]} 18. Nd5 {[%clk 0:02:19.6]} 18... Bxe5 {[%clk 0:01:23.1]} 19. Rxe5
{[%clk 0:02:19.9]} 19... Kf8 {[%clk 0:01:21.9]} 20. h4 {[%clk 0:01:58.4]} 20...
Rd7 {[%clk 0:01:17.3]} 21. c4 {[%clk 0:01:56.2]} 21... Rad8 {[%clk 0:01:12.7]}
22. Rde3 {[%clk 0:01:40.7]} 22... b5 {[%clk 0:01:06.1]} 23. Rxe6 {[%clk
0:01:19.8]} 23... fxe6 {[%clk 0:01:04.2]} 24. Nf4 {[%clk 0:01:21.2]} 24... Rb8
{[%clk 0:00:46.5]} 25. Nxe6+ {[%clk 0:01:19.1]} 25... Kf7 {[%clk 0:00:47.1]} 26.
c5 {[%clk 0:01:12.8]} 26... b4 {[%clk 0:00:44.5]} 27. Ng5+ {[%clk 0:01:08.1]}
27... Ke8 {[%clk 0:00:22.5]} 28. Nxh7 {[%clk 0:01:03]} 28... Rd1+ {[%clk
0:00:22.5]} 29. Kh2 {[%clk 0:01:04]} 29... Rc1 {[%clk 0:00:23.4]} 30. Nf6+
{[%clk 0:01:01.6]} 30... Kd8 {[%clk 0:00:24.1]} 31. Ne4 {[%clk 0:01:03.1]} 31...
b3 {[%clk 0:00:21.6]} 32. Rd3+ {[%clk 0:00:34.9]} 32... Kc7 {[%clk 0:00:22.2]}
33. Nc3 {[%clk 0:00:36.2]} 33... Rc2 {[%clk 0:00:20.7]} 34. Nd5+ {[%clk
0:00:35.2]} 34... Kc6 {[%clk 0:00:17]} 35. Nb4+ {[%clk 0:00:34]} 35... Rxb4
{[%clk 0:00:16.1]} 36. axb4 {[%clk 0:00:35]} 36... Rxb2 {[%clk 0:00:18]} 37. g4
{[%clk 0:00:29.2]} 37... Kb5 {[%clk 0:00:18.5]} 38. Kg3 {[%clk 0:00:18.5]} 38...
Kxb4 {[%clk 0:00:18.2]} 39. h5 {[%clk 0:00:16.9]} 39... gxh5 {[%clk 0:00:18.6]}
40. gxh5 {[%clk 0:00:18.6]} 40... Rc2 {[%clk 0:00:19.9]} 41. Rd4+ {[%clk
0:00:17]} 41... Kxc5 {[%clk 0:00:19.7]} 42. Rd8 {[%clk 0:00:16.2]} 42... Kc4
{[%clk 0:00:18.7]} 43. h6 {[%clk 0:00:16.1]} 43... b2 {[%clk 0:00:19.7]} 44. Rb8
{[%clk 0:00:11.2]} 44... Rc3+ {[%clk 0:00:19.6]} 45. Kg2 {[%clk 0:00:09.1]}
45... Rb3 {[%clk 0:00:20.9]} 46. Rc8+ {[%clk 0:00:04.7]} 46... Kd5 {[%clk
0:00:20.5]} 47. Rd8+ {[%clk 0:00:04.8]} 47... Ke6 {[%clk 0:00:21.1]} 48. h7
{[%clk 0:00:05.5]} 48... b1=Q {[%clk 0:00:20.8]} 49. h8=Q {[%clk 0:00:06.4]}
49... Qe4+ {[%clk 0:00:12.2]} 50. Kh2 {[%clk 0:00:06.7]} 50... Qf4+ {[%clk
0:00:12]} 51. Kg1 {[%clk 0:00:05.9]} 51... Rb1+ {[%clk 0:00:07.2]} 52. Kg2
{[%clk 0:00:07.4]} 52... Qg4+ {[%clk 0:00:08.1]} 53. Kh2 {[%clk 0:00:08]} 53...
Qg1+ {[%clk 0:00:09.2]} 54. Kh3 {[%clk 0:00:09.6]} 54... Rb3+ {[%clk 0:00:06.2]}
55. Kh4 {[%clk 0:00:08]} 55... Qh2+ {[%clk 0:00:06.5]} 56. Kg4 {[%clk
0:00:07.8]} 56... Qg2+ {[%clk 0:00:07.6]} 57. Kf4 {[%clk 0:00:07.1]} 57... Qxf2+
{[%clk 0:00:08.3]} 58. Ke4 {[%clk 0:00:07.2]} 58... Re3+ {[%clk 0:00:09.3]} 59.
Kd4 {[%clk 0:00:08.2]} 59... Rh3+ {[%clk 0:00:08]} 60. Kc4 {[%clk 0:00:08.9]}
60... Rxh8 {[%clk 0:00:08.6]} 61. Rxh8 {[%clk 0:00:10.7]} 61... Qc2+ {[%clk
0:00:09.3]} 0-1

[Event "*** Titled Tuesday Blitz"]
[Site "Chess.com"]
[Date "2020.02.04"]
[Round "3"]
[White "Kira170"]
[Black "Lagmantr"]
[Result "1-0"]
[WhiteElo "2536"]
[BlackElo "2743"]
[TimeControl "180+2"]
[EndTime "13:40:59 PST"]
[Termination "Kira170 won by resignation"]

1. d4 {[%clk 0:03:01.9]} 1... d5 {[%clk 0:03:01]} 2. c4 {[%clk 0:03:01.5]} 2...
e6 {[%clk 0:03:02.2]} 3. Nf3 {[%clk 0:03:00.8]} 3... Nf6 {[%clk 0:03:03.3]} 4.
Nc3 {[%clk 0:03:01.8]} 4... c6 {[%clk 0:03:04.3]} 5. e3 {[%clk 0:03:00.8]} 5...
Nbd7 {[%clk 0:03:05.2]} 6. Bd3 {[%clk 0:02:56.1]} 6... dxc4 {[%clk 0:03:06.3]}
7. Bxc4 {[%clk 0:02:58]} 7... b5 {[%clk 0:03:08.2]} 8. Bb3 {[%clk 0:02:59.6]}
8... Bb7 {[%clk 0:03:06.9]} 9. O-O {[%clk 0:03:00.5]} 9... Be7 {[%clk
0:03:07.8]} 10. e4 {[%clk 0:03:01.2]} 10... b4 {[%clk 0:03:08.6]} 11. Na4 {[%clk
0:03:02]} 11... Nxe4 {[%clk 0:03:07]} 12. Re1 {[%clk 0:03:03.4]} 12... c5 {[%clk
0:02:58.2]} 13. d5 {[%clk 0:02:50.8]} 13... exd5 {[%clk 0:02:58]} 14. Bxd5
{[%clk 0:02:41.8]} 14... Bxd5 {[%clk 0:02:59.9]} 15. Qxd5 {[%clk 0:02:42.4]}
15... Nef6 {[%clk 0:03:01.2]} 16. Qd6 {[%clk 0:02:30]} 16... Kf8 {[%clk
0:02:25.2]} 17. Qg3 {[%clk 0:01:51.1]} 17... Nb6 {[%clk 0:02:21.1]} 18. Nxb6
{[%clk 0:01:48.2]} 18... axb6 {[%clk 0:02:23]} 19. Ne5 {[%clk 0:01:45.8]} 19...
Bd6 {[%clk 0:02:14.1]} 20. Qf3 {[%clk 0:01:26.3]} 20... Bxe5 {[%clk 0:01:35.8]}
21. Rxe5 {[%clk 0:01:28.2]} 21... Ra7 {[%clk 0:01:37]} 22. Bg5 {[%clk
0:01:13.3]} 22... h6 {[%clk 0:01:35.1]} 23. Bh4 {[%clk 0:01:13.2]} 23... g5
{[%clk 0:00:47.3]} 24. Bg3 {[%clk 0:01:13.7]} 24... Kg7 {[%clk 0:00:48.1]} 25.
Rf5 {[%clk 0:01:08.1]} 25... Re8 {[%clk 0:00:48.7]} 26. Be5 {[%clk 0:01:06]}
26... Re6 {[%clk 0:00:49.4]} 27. h4 {[%clk 0:01:01.8]} 27... gxh4 {[%clk
0:00:34.5]} 28. Rd1 {[%clk 0:00:49.3]} 28... Qe7 {[%clk 0:00:27.9]} 29. Qf4
{[%clk 0:00:25.9]} 29... Kg6 {[%clk 0:00:15.6]} 30. Bxf6 {[%clk 0:00:21.3]}
30... Rxf6 {[%clk 0:00:15.4]} 31. Rxf6+ {[%clk 0:00:22.6]} 31... Qxf6 {[%clk
0:00:16.5]} 32. Rd6 {[%clk 0:00:23.6]} 32... Qxd6 {[%clk 0:00:17.3]} 33. Qxd6+
{[%clk 0:00:25]} 33... f6 {[%clk 0:00:17.2]} 34. Qd3+ {[%clk 0:00:16.9]} 34...
Kg7 {[%clk 0:00:17.6]} 35. Qd5 {[%clk 0:00:17.5]} 35... Ra5 {[%clk 0:00:10.8]}
36. Qc4 {[%clk 0:00:18.3]} 36... Ra7 {[%clk 0:00:10.9]} 37. Kh2 {[%clk
0:00:18.6]} 37... Kg6 {[%clk 0:00:12]} 38. Kh3 {[%clk 0:00:19.7]} 38... f5
{[%clk 0:00:11.3]} 39. Kxh4 {[%clk 0:00:20.4]} 39... Re7 {[%clk 0:00:12.7]} 40.
Qg8+ {[%clk 0:00:20.8]} 40... Kf6 {[%clk 0:00:13.5]} 41. f4 {[%clk 0:00:21.3]}
41... Re2 {[%clk 0:00:13.5]} 42. Qf8+ {[%clk 0:00:22.1]} 42... Kg6 {[%clk
0:00:15]} 43. Qg8+ {[%clk 0:00:22.3]} 43... Kf6 {[%clk 0:00:16.2]} 44. Kh3
{[%clk 0:00:22.4]} 44... Re3+ {[%clk 0:00:15.5]} 45. g3 {[%clk 0:00:23.2]} 45...
Re6 {[%clk 0:00:15.2]} 46. Qc8 {[%clk 0:00:22.5]} 46... Ke7 {[%clk 0:00:16]} 47.
Qc7+ {[%clk 0:00:23.3]} 47... Ke8 {[%clk 0:00:16.9]} 48. Qh7 {[%clk 0:00:23]}
48... Kd8 {[%clk 0:00:17.1]} 49. Qxf5 {[%clk 0:00:23.9]} 49... Ke7 {[%clk
0:00:18.6]} 50. Qh7+ {[%clk 0:00:24.2]} 50... Kd6 {[%clk 0:00:20.5]} 51. Qd3+
{[%clk 0:00:25.8]} 51... Kc6 {[%clk 0:00:21.3]} 52. f5 {[%clk 0:00:27]} 52...
Rd6 {[%clk 0:00:22.7]} 53. Qf3+ {[%clk 0:00:27.9]} 53... Kd7 {[%clk 0:00:24.1]}
54. Kg4 {[%clk 0:00:27.6]} 54... Ke7 {[%clk 0:00:25.3]} 55. Kh5 {[%clk
0:00:28.6]} 55... Kf6 {[%clk 0:00:26.5]} 56. Qf4 {[%clk 0:00:28.8]} 56... Rd4
{[%clk 0:00:26]} 57. Qxh6+ {[%clk 0:00:28.8]} 57... Kxf5 {[%clk 0:00:27.5]} 58.
Qh7+ {[%clk 0:00:29.7]} 58... Kf6 {[%clk 0:00:27.3]} 59. g4 {[%clk 0:00:30.7]}
59... Rd1 {[%clk 0:00:27.3]} 60. Qf5+ {[%clk 0:00:31.5]} 60... Kg7 {[%clk
0:00:28.4]} 61. Qe5+ {[%clk 0:00:32.3]} 61... Kh7 {[%clk 0:00:29.5]} 62. Kg5
{[%clk 0:00:33.3]} 62... Rd7 {[%clk 0:00:29.4]} 63. Qe6 {[%clk 0:00:33.7]} 63...
Rg7+ {[%clk 0:00:29.5]} 64. Kh5 {[%clk 0:00:34.8]} 64... Kh8 {[%clk 0:00:29.9]}
65. g5 {[%clk 0:00:35.3]} 65... Rh7+ {[%clk 0:00:31.1]} 66. Kg4 {[%clk
0:00:35.3]} 66... Kg7 {[%clk 0:00:32]} 67. Qxb6 {[%clk 0:00:36]} 67... Rh8
{[%clk 0:00:32.4]} 68. Qxc5 {[%clk 0:00:36.6]} 68... b3 {[%clk 0:00:34.1]} 69.
axb3 {[%clk 0:00:36.9]} 69... Rf8 {[%clk 0:00:36]} 70. Qxf8+ {[%clk 0:00:37]}
70... Kxf8 {[%clk 0:00:37.9]} 71. b4 {[%clk 0:00:38.5]} 71... Ke7 {[%clk
0:00:39.5]} 72. b5 {[%clk 0:00:39.9]} 72... Kd6 {[%clk 0:00:41.4]} 73. g6 {[%clk
0:00:41.2]} 73... Kc5 {[%clk 0:00:43.3]} 74. g7 {[%clk 0:00:42.4]} 74... Kb4
{[%clk 0:00:45.2]} 75. g8=Q {[%clk 0:00:43.4]} 75... Ka4 {[%clk 0:00:47.1]} 76.
b6 {[%clk 0:00:44]} 1-0

[Event "*** Titled Tuesday Blitz"]
[Site "Chess.com"]
[Date "2020.02.04"]
[Round "3"]
[White "Firouzja2003"]
[Black "AvitalBor"]
[Result "1/2-1/2"]
[WhiteElo "3149"]
[BlackElo "2746"]
[TimeControl "180+2"]
[EndTime "13:41:14 PST"]
[Termination "Game drawn - insufficient material"]

1. e4 {[%clk 0:03:01.9]} 1... e5 {[%clk 0:03:00.8]} 2. Nf3 {[%clk 0:03:02.8]}
2... Nc6 {[%clk 0:03:02]} 3. Nc3 {[%clk 0:02:59.7]} 3... Nf6 {[%clk 0:02:58.5]}
4. d4 {[%clk 0:02:58.8]} 4... exd4 {[%clk 0:03:00.1]} 5. Nxd4 {[%clk 0:03:00.7]}
5... Bb4 {[%clk 0:03:00.3]} 6. Nxc6 {[%clk 0:03:01.8]} 6... bxc6 {[%clk
0:03:02.2]} 7. Bd3 {[%clk 0:03:03.5]} 7... d5 {[%clk 0:03:00.9]} 8. exd5 {[%clk
0:03:03.9]} 8... cxd5 {[%clk 0:03:02.8]} 9. O-O {[%clk 0:03:05]} 9... O-O {[%clk
0:03:03.3]} 10. Bg5 {[%clk 0:03:04.6]} 10... c6 {[%clk 0:03:04.3]} 11. Qf3
{[%clk 0:03:05.4]} 11... Re8 {[%clk 0:03:01.4]} 12. Rfe1 {[%clk 0:02:59.4]}
12... Be6 {[%clk 0:02:57.6]} 13. a3 {[%clk 0:02:56.4]} 13... Bd6 {[%clk
0:02:54.1]} 14. Ne2 {[%clk 0:02:46.8]} 14... Be5 {[%clk 0:02:21.9]} 15. c3
{[%clk 0:02:34.7]} 15... h6 {[%clk 0:02:03.5]} 16. Bf4 {[%clk 0:02:29]} 16...
Bg4 {[%clk 0:01:50.9]} 17. Qg3 {[%clk 0:02:30]} 17... Bxe2 {[%clk 0:01:48.7]}
18. Bxe5 {[%clk 0:02:23.7]} 18... Rxe5 {[%clk 0:01:38.8]} 19. Rxe2 {[%clk
0:02:24.8]} 19... Rxe2 {[%clk 0:01:38.9]} 20. Bxe2 {[%clk 0:02:26.7]} 20... Qb6
{[%clk 0:01:36.5]} 21. b4 {[%clk 0:02:17.3]} 21... Re8 {[%clk 0:01:36.3]} 22.
Bd3 {[%clk 0:02:17.8]} 22... Ne4 {[%clk 0:01:28]} 23. Re1 {[%clk 0:02:12.3]}
23... Re6 {[%clk 0:01:11.3]} 24. Bxe4 {[%clk 0:02:11.3]} 24... dxe4 {[%clk
0:01:13.2]} 25. Qf4 {[%clk 0:02:03.5]} 25... Qa6 {[%clk 0:01:05.7]} 26. Rd1
{[%clk 0:01:54.5]} 26... Qe2 {[%clk 0:00:45.6]} 27. Rd8+ {[%clk 0:01:07.3]}
27... Kh7 {[%clk 0:00:45.2]} 28. Qf5+ {[%clk 0:01:06.5]} 28... Rg6 {[%clk
0:00:45.9]} 29. h4 {[%clk 0:01:05]} 29... e3 {[%clk 0:00:35.3]} 30. h5 {[%clk
0:00:54.5]} 30... exf2+ {[%clk 0:00:35.5]} 31. Qxf2 {[%clk 0:00:55.1]} 31...
Qxh5 {[%clk 0:00:36.4]} 32. Rd7 {[%clk 0:00:40.3]} 32... Rf6 {[%clk 0:00:30.3]}
33. Qc2+ {[%clk 0:00:33.4]} 33... g6 {[%clk 0:00:25.7]} 34. Qd3 {[%clk 0:00:23]}
34... Qe5 {[%clk 0:00:22.2]} 35. Qd2 {[%clk 0:00:22.5]} 35... a5 {[%clk
0:00:20.5]} 36. Rd8 {[%clk 0:00:21.1]} 36... axb4 {[%clk 0:00:19.7]} 37. axb4
{[%clk 0:00:20.9]} 37... h5 {[%clk 0:00:19.5]} 38. Qd4 {[%clk 0:00:15.5]} 38...
Qe1+ {[%clk 0:00:17.9]} 39. Kh2 {[%clk 0:00:16.1]} 39... Qf1 {[%clk 0:00:17]}
40. Rc8 {[%clk 0:00:11]} 40... Qf5 {[%clk 0:00:17.3]} 41. Rd8 {[%clk 0:00:08.9]}
41... Qg5 {[%clk 0:00:18.1]} 42. Re8 {[%clk 0:00:07.9]} 42... h4 {[%clk
0:00:18.3]} 43. Re4 {[%clk 0:00:05.5]} 43... Qg3+ {[%clk 0:00:09.1]} 44. Kg1
{[%clk 0:00:05.9]} 44... Kg7 {[%clk 0:00:06]} 45. Rxh4 {[%clk 0:00:06.2]} 45...
Qd6 {[%clk 0:00:06.9]} 46. Qxd6 {[%clk 0:00:04.2]} 46... Rxd6 {[%clk 0:00:08.8]}
47. Rc4 {[%clk 0:00:05.2]} 47... Kf6 {[%clk 0:00:10]} 48. Rc5 {[%clk 0:00:06.6]}
48... Ke6 {[%clk 0:00:11.1]} 49. Kf2 {[%clk 0:00:08.1]} 49... Kd7 {[%clk
0:00:12.5]} 50. Ke3 {[%clk 0:00:09.2]} 50... Rd1 {[%clk 0:00:11.9]} 51. Kf4
{[%clk 0:00:09.4]} 51... Rf1+ {[%clk 0:00:12.7]} 52. Kg5 {[%clk 0:00:09.2]}
52... Kd6 {[%clk 0:00:13.8]} 53. g4 {[%clk 0:00:10.1]} 53... Rf3 {[%clk
0:00:14.7]} 54. Kh6 {[%clk 0:00:10.2]} 54... Kd7 {[%clk 0:00:13.7]} 55. Kg7
{[%clk 0:00:08.2]} 55... Kd6 {[%clk 0:00:13.8]} 56. g5 {[%clk 0:00:08]} 56...
Kd7 {[%clk 0:00:14.1]} 57. c4 {[%clk 0:00:06.8]} 57... Rf4 {[%clk 0:00:14.4]}
58. Ra5 {[%clk 0:00:06.8]} 58... Ke6 {[%clk 0:00:12.8]} 59. Rc5 {[%clk
0:00:07.4]} 59... Kd6 {[%clk 0:00:13.4]} 60. Ra5 {[%clk 0:00:06.4]} 60... Rxc4
{[%clk 0:00:11.8]} 61. Kxf7 {[%clk 0:00:07.6]} 61... Rxb4 {[%clk 0:00:13.3]} 62.
Kxg6 {[%clk 0:00:09.5]} 62... c5 {[%clk 0:00:12.4]} 63. Kf6 {[%clk 0:00:09.7]}
63... Rf4+ {[%clk 0:00:13.3]} 64. Kg6 {[%clk 0:00:11.2]} 64... c4 {[%clk
0:00:13.9]} 65. Ra6+ {[%clk 0:00:11.5]} 65... Kc5 {[%clk 0:00:14.4]} 66. Rf6
{[%clk 0:00:12.7]} 66... Rg4 {[%clk 0:00:14.7]} 67. Rf8 {[%clk 0:00:09.5]} 67...
c3 {[%clk 0:00:13.9]} 68. Rc8+ {[%clk 0:00:11.4]} 68... Kb4 {[%clk 0:00:14.7]}
69. Kf5 {[%clk 0:00:11.8]} 69... Rg1 {[%clk 0:00:15.5]} 70. g6 {[%clk
0:00:12.8]} 70... Kb3 {[%clk 0:00:16.4]} 71. Kf6 {[%clk 0:00:14.3]} 71... c2
{[%clk 0:00:17.2]} 72. Rxc2 {[%clk 0:00:16.2]} 72... Kxc2 {[%clk 0:00:17.6]} 73.
g7 {[%clk 0:00:18.1]} 73... Rxg7 {[%clk 0:00:18.2]} 74. Kxg7 {[%clk 0:00:19.5]}
1/2-1/2